[Event "41st Arco Open 2019"]
[Site "Arco"]
[Date "2019.10.07"]
[Round "4"]
[White "Horvath, Csaba"]
[Black "Schroeder, Wilfried"]
[Result "1-0"]
[ECO "A13"]
[WhiteElo "2503"]
[BlackElo "2195"]
[Annotator "ChessBase"]
[PlyCount "79"]
[EventDate "2019.10.04"]
[EventType "swiss"]
[EventCountry "ITA"]
[SourceTitle "playchess.com"]
[Source "ChessBase"]
[SourceQuality "1"]
[TimeControl "40/5400+30:1800+30"]

1. c4 {[%emt 0:01:30]} e6 {[%emt 0:01:30]} 2. Nf3 {[%emt 0:00:30]} d5 {[%emt 0:00:30]} 3. g3 {[%emt 0:00:30]} Nf6 {[%emt 0:00:30]} 4. Bg2 {[%emt 0:00:30]} dxc4 {[%emt 0:01:30]} 5. Qa4+ {[%emt 0:00:30]} c6 {[%emt 0:01:30]} 6. Qxc4 {[%emt 0:02:30]} b5 {[%emt 0:00:30]} 7. Qb3 {[%emt 0:00:30]} Bb7 {[%emt 0:00:30]} 8. O-O Nbd7 {[%emt 0:00:30]} 9. d4 {[%emt 0:05:00]} Qb6 {[%emt 0:05:30]} 10. Nc3 {[%emt 0:02:30]} b4 {[%emt 0:14:30]} 11. Na4 {[%emt 0:01:30]} Qb5 {[%emt 0:11:30]} 12. Bg5 {[%emt 0:23:30]} c5 {[%emt 0:06:30]} 13. dxc5 {[%emt 0:08:30]} Nxc5 {[%emt 0:00:30]} 14. Nxc5 {[%emt 0:06:30]} Bxc5 {[%emt 0:00:30]} 15. Bxf6 gxf6 {[%emt 0:00:00]} 16. Rac1 {[%emt 0:07:00]} O-O 17. a4 {[%emt 0:02:30]} Qb6 {[%emt 0:00:00]} 18. Nd2 {[%emt 0:02:30]} Bxg2 19. Kxg2 {[%emt 0:00:00]} Be7 {[%emt 0:08:30]} 20. Qf3 {[%emt 0:00:00]} Rac8 {[%emt 0:03:30]} 21. Nc4 {[%emt 0:07:30]} Qc5 {[%emt 0:03:30]} 22. Rfd1 {[%emt 0:00:30]} Rfd8 {[%emt 0:01:30]} 23. b3 {[%emt 0:08:42]} Kg7 24. h4 {[%emt 0:02:04]} Rxd1 {[%emt 0:10:00]} 25. Rxd1 {[%emt 0:00:00]} Rd8 {[%emt 0:00:30]} 26. Rxd8 {[%emt 0:02:18]} Bxd8 27. Qb7 {[%emt 0:03:35]} f5 {[%emt 0:04:00]} 28. Qd7 {[%emt 0:02:03]} Bc7 {[%emt 0:00:30]} 29. e3 {[%emt 0:02:21]} Kf6 {[%emt 0:03:30]} 30. Kf1 {[%emt 0:00:00]} Kg7 31. Ke2 {[%emt 0:01:11]} Kf6 {[%emt 0:01:00]} 32. Kd3 {[%emt 0:02:20]} e5 {[%emt 0:07:43]} 33. Ke2 {[%emt 0:03:09]} e4 {[%emt 0:05:06]} 34. g4 {[%emt 0:01:55]} fxg4 {[%emt 0:01:00]} 35. Nd2 Qc2 {[%emt 0:01:17]} 36. Qxg4 {[%emt 0:01:00]} Ke5 37. Qf4+ {[%emt 0:01:16]} Kd5 {[%emt 0:03:00]} 38. Qxf7+ {[%emt 0:00:19]} Ke5 39. Qxh7 {[%emt 0:01:07]} Kd5 {[%emt 0:01:00]} 40. Qf7+ {[%emt 0:00:30]} 1-0

[Event "41st Arco Open 2019"]
[Site "Arco"]
[Date "2019.10.07"]
[Round "4"]
[White "Okhotnik, Vladimir"]
[Black "Palczert, Matyas"]
[Result "0-1"]
[ECO "B22"]
[WhiteElo "2352"]
[BlackElo "2009"]
[Annotator "ChessBase"]
[PlyCount "162"]
[EventDate "2019.10.04"]
[EventType "swiss"]
[EventCountry "ITA"]
[SourceTitle "playchess.com"]
[Source "ChessBase"]
[SourceQuality "1"]
[TimeControl "40/5400+30:1800+30"]

1. e4 {[%emt 0:00:30]} c5 {[%emt 0:00:30]} 2. c3 {[%emt 0:00:00]} Nf6 {[%emt 0:00:00]} 3. e5 {[%emt 0:00:00]} Nd5 {[%emt 0:00:00]} 4. Nf3 {[%emt 0:00:00]} Nc6 5. d4 {[%emt 0:01:00]} cxd4 {[%emt 0:01:00]} 6. cxd4 d6 {[%emt 0:00:30]} 7. Bc4 {[%emt 0:00:00]} Nb6 {[%emt 0:00:00]} 8. Bb5 {[%emt 0:01:30]} dxe5 {[%emt 0:01:00]} 9. Nxe5 {[%emt 0:00:00]} Bd7 {[%emt 0:00:30]} 10. Nc3 {[%emt 0:00:00]} Nxe5 {[%emt 0:05:30]} 11. dxe5 {[%emt 0:00:00]} Bxb5 {[%emt 0:00:00]} 12. Qxd8+ {[%emt 0:00:00]} Rxd8 {[%emt 0:00:00]} 13. Nxb5 a6 {[%emt 0:00:30]} 14. Nc3 {[%emt 0:00:00]} e6 {[%emt 0:04:30]} 15. Ke2 Bb4 {[%emt 0:05:30]} 16. Ne4 {[%emt 0:07:00]} O-O {[%emt 0:00:30]} 17. a3 {[%emt 0:02:30]} Be7 {[%emt 0:00:30]} 18. Bd2 {[%emt 0:02:30]} Na4 {[%emt 0:00:00]} 19. b4 {[%emt 0:04:30]} Rd5 {[%emt 0:14:00]} 20. f4 {[%emt 0:00:30]} Rd4 {[%emt 0:01:30]} 21. Nf2 {[%emt 0:01:30]} Rfd8 {[%emt 0:07:30]} 22. Ra2 {[%emt 0:26:30]} Rc8 {[%emt 0:04:30]} 23. Kf3 {[%emt 0:00:00]} b5 {[%emt 0:09:30]} 24. Rc1 {[%emt 0:00:00]} Rxc1 {[%emt 0:04:30]} 25. Bxc1 {[%emt 0:00:00]} Rc4 {[%emt 0:00:00]} 26. Bd2 {[%emt 0:00:00]} Nb6 {[%emt 0:00:00]} 27. Ne4 {[%emt 0:00:00]} Rc8 {[%emt 0:00:00]} 28. Be3 {[%emt 0:00:00]} Nc4 {[%emt 0:12:00]} 29. Bc5 {[%emt 0:27:30]} Kf8 {[%emt 0:01:30]} 30. Nd6 {[%emt 0:00:00]} Bxd6 {[%emt 0:00:30]} 31. exd6 {[%emt 0:00:00]} Ke8 {[%emt 0:04:30]} 32. a4 {[%emt 0:00:00]} bxa4 {[%emt 0:00:00]} 33. Rxa4 {[%emt 0:00:00]} a5 {[%emt 0:08:55]} 34. bxa5 Nb2 {[%emt 0:00:30]} 35. d7+ {[%emt 0:00:00]} Kxd7 {[%emt 0:04:56]} 36. Rd4+ {[%emt 0:00:00]} Ke8 {[%emt 0:00:00]} 37. Bb4 {[%emt 0:00:00]} Na4 {[%emt 0:00:00]} 38. Bd2 {[%emt 0:00:00]} Nc3 {[%emt 0:11:28]} 39. Rb4 Nd5 {[%emt 0:00:00]} 40. Rb7 {[%emt 0:01:30]} Rc2 {[%emt 0:00:00]} 41. a6 {[%emt 0:30:30]} Rxd2 {[%emt 0:32:59]} 42. a7 Rd3+ {[%emt 0:00:30]} 43. Ke4 {[%emt 0:02:00]} Re3+ {[%emt 0:01:03]} 44. Kd4 {[%emt 0:00:30]} Ra3 {[%emt 0:00:05]} 45. Rb8+ {[%emt 0:06:30]} Ke7 46. a8=Q {[%emt 0:00:00]} Rxa8 {[%emt 0:00:16]} 47. Rxa8 Nxf4 {[%emt 0:00:17]} 48. g3 {[%emt 0:00:30]} Ng6 {[%emt 0:00:00]} 49. h4 {[%emt 0:00:30]} Kf6 {[%emt 0:01:33]} 50. Ra5 Ne7 {[%emt 0:00:30]} 51. Ke4 {[%emt 0:00:00]} Nf5 {[%emt 0:01:26]} 52. Kf4 {[%emt 0:00:30]} g6 {[%emt 0:00:31]} 53. Ra3 {[%emt 0:00:30]} h5 {[%emt 0:00:00]} 54. Rf3 {[%emt 0:00:30]} e5+ {[%emt 0:00:58]} 55. Ke4 {[%emt 0:27:39]} Ke6 {[%emt 0:00:12]} 56. Ra3 {[%emt 0:00:00]} Nd6+ {[%emt 0:00:22]} 57. Kf3 {[%emt 0:00:00]} Nb5 {[%emt 0:00:42]} 58. Ra8 {[%emt 0:00:00]} Kf5 59. Rc8 {[%emt 0:00:00]} Nd4+ {[%emt 0:01:02]} 60. Kf2 f6 {[%emt 0:00:00]} 61. Rg8 {[%emt 0:00:00]} e4 {[%emt 0:00:00]} 62. Rc8 {[%emt 0:00:00]} Nf3 {[%emt 0:00:00]} 63. Rc5+ {[%emt 0:00:00]} Ne5 {[%emt 0:00:00]} 64. Ra5 {[%emt 0:00:00]} Kg4 {[%emt 0:00:00]} 65. Ra6 {[%emt 0:00:00]} e3+ {[%emt 0:00:00]} 66. Kxe3 {[%emt 0:00:00]} Kxg3 {[%emt 0:00:00]} 67. Ra1 {[%emt 0:00:00]} Ng4+ {[%emt 0:00:00]} 68. Ke2 {[%emt 0:00:00]} Kxh4 {[%emt 0:00:00]} 69. Kf3 {[%emt 0:00:00]} Kg5 {[%emt 0:00:00]} 70. Ra5+ {[%emt 0:00:00]} f5 71. Rb5 {[%emt 0:00:00]} Nf6 {[%emt 0:00:00]} 72. Rb1 h4 {[%emt 0:00:00]} 73. Rb8 {[%emt 0:00:00]} Nh5 {[%emt 0:00:00]} 74. Rb1 {[%emt 0:00:00]} h3 {[%emt 0:00:00]} 75. Rg1+ {[%emt 0:00:00]} Kh4 {[%emt 0:00:00]} 76. Kf2 {[%emt 0:00:00]} h2 {[%emt 0:00:00]} 77. Ra1 {[%emt 0:00:00]} Ng3 {[%emt 0:00:00]} 78. Ra4+ {[%emt 0:00:00]} Kh3 79. Ra3 {[%emt 0:00:00]} f4 {[%emt 0:00:00]} 80. Ra5 {[%emt 0:00:00]} h1=Q {[%emt 0:00:00]} 81. Rh5+ {[%emt 0:00:00]} Nxh5 {[%emt 0:00:00]} 0-1

[Event "41st Arco Open 2019"]
[Site "Arco"]
[Date "2019.10.07"]
[Round "4"]
[White "Favaloro, Andrea"]
[Black "Leutwyler, Martin"]
[Result "1-0"]
[ECO "B11"]
[WhiteElo "2338"]
[BlackElo "2154"]
[Annotator "ChessBase"]
[PlyCount "79"]
[EventDate "2019.10.04"]
[EventType "swiss"]
[EventCountry "ITA"]
[SourceTitle "playchess.com"]
[Source "ChessBase"]
[SourceQuality "1"]
[TimeControl "40/5400+30:1800+30"]

1. e4 {[%emt 0:00:30]} c6 {[%emt 0:00:30]} 2. Nf3 {[%emt 0:00:30]} d5 {[%emt 0:00:00]} 3. Nc3 {[%emt 0:00:00]} Bg4 {[%emt 0:00:00]} 4. h3 {[%emt 0:00:00]} Bxf3 {[%emt 0:00:30]} 5. Qxf3 {[%emt 0:00:30]} e6 {[%emt 0:00:30]} 6. Be2 {[%emt 0:02:30]} Nf6 {[%emt 0:02:30]} 7. O-O {[%emt 0:00:00]} Bc5 {[%emt 0:01:30]} 8. Rd1 {[%emt 0:00:00]} Bd4 {[%emt 0:01:30]} 9. exd5 {[%emt 0:02:30]} exd5 10. Bf1 {[%emt 0:01:30]} O-O {[%emt 0:08:00]} 11. Ne2 {[%emt 0:00:30]} Be5 12. d4 {[%emt 0:00:30]} Bd6 {[%emt 0:06:00]} 13. Ng3 Bxg3 {[%emt 0:00:30]} 14. Qxg3 {[%emt 0:10:00]} Ne4 {[%emt 0:15:30]} 15. Qb3 Qf6 {[%emt 0:03:30]} 16. Be3 {[%emt 0:05:00]} Nd6 {[%emt 0:00:30]} 17. c3 {[%emt 0:05:30]} Nd7 {[%emt 0:01:30]} 18. Bd3 {[%emt 0:00:30]} Rfe8 19. Qc2 {[%emt 0:00:30]} Nf8 {[%emt 0:04:00]} 20. Re1 {[%emt 0:18:30]} Re7 {[%emt 0:02:30]} 21. Re2 {[%emt 0:00:00]} Rae8 {[%emt 0:03:30]} 22. Rae1 {[%emt 0:00:00]} Ng6 {[%emt 0:08:30]} 23. Bc1 {[%emt 0:00:00]} Rxe2 {[%emt 0:00:30]} 24. Rxe2 {[%emt 0:00:00]} Rxe2 {[%emt 0:00:30]} 25. Bxe2 {[%emt 0:00:00]} Nf4 {[%emt 0:00:30]} 26. Bf1 {[%emt 0:00:00]} Qg6 {[%emt 0:11:30]} 27. Qxg6 Nxg6 {[%emt 0:00:30]} 28. Bd3 {[%emt 0:00:00]} Kf8 {[%emt 0:06:30]} 29. f3 {[%emt 0:00:30]} Ke7 {[%emt 0:00:30]} 30. Kf2 {[%emt 0:00:30]} Nf8 {[%emt 0:00:00]} 31. Bg5+ {[%emt 0:02:30]} Ke6 {[%emt 0:02:00]} 32. g4 {[%emt 0:01:30]} g6 {[%emt 0:07:49]} 33. Bf4 {[%emt 0:01:30]} Nd7 {[%emt 0:00:00]} 34. Kg3 f6 {[%emt 0:07:24]} 35. Bc1 {[%emt 0:02:00]} Nf7 {[%emt 0:00:00]} 36. h4 {[%emt 0:02:30]} Nf8 {[%emt 0:00:00]} 37. b3 Nd7 {[%emt 0:00:00]} 38. Ba3 {[%emt 0:02:00]} b6 {[%emt 0:09:30]} 39. h5 {[%emt 0:01:30]} gxh5 {[%emt 0:00:45]} 40. Bf5# {[%emt 0:00:30]} 1-0

[Event "41st Arco Open 2019"]
[Site "Arco"]
[Date "2019.10.07"]
[Round "4"]
[White "Qendro, Llambi"]
[Black "Wernet, Andreas"]
[Result "1-0"]
[ECO "A87"]
[WhiteElo "2312"]
[BlackElo "1990"]
[Annotator "ChessBase"]
[PlyCount "23"]
[EventDate "2019.10.04"]
[EventType "swiss"]
[EventCountry "ITA"]
[SourceTitle "playchess.com"]
[Source "ChessBase"]
[SourceQuality "1"]
[TimeControl "40/5400+30:1800+30"]

1. d4 {[%emt 0:00:30]} f5 {[%emt 0:00:30]} 2. Nf3 {[%emt 0:00:00]} g6 {[%emt 0:00:00]} 3. g3 {[%emt 0:00:00]} Nf6 {[%emt 0:00:00]} 4. Bg2 {[%emt 0:00:30]} Bg7 5. O-O {[%emt 0:00:00]} O-O {[%emt 0:00:00]} 6. c4 {[%emt 0:00:00]} d6 {[%emt 0:00:30]} 7. Nc3 {[%emt 0:00:00]} Qe8 {[%emt 0:00:00]} 8. Re1 {[%emt 0:15:00]} e5 {[%emt 0:15:00]} 9. dxe5 {[%emt 0:00:00]} dxe5 {[%emt 0:02:30]} 10. e4 {[%emt 0:00:00]} Nh5 {[%emt 0:09:30]} 11. exf5 {[%emt 0:00:00]} gxf5 {[%emt 0:00:00]} 12. Nxe5 {[%emt 0:02:00]} 1-0

[Event "41st Arco Open 2019"]
[Site "Arco"]
[Date "2019.10.07"]
[Round "4"]
[White "Welling, Gerard"]
[Black "Heidel, Andre Nicolas"]
[Result "0-1"]
[ECO "D94"]
[WhiteElo "2302"]
[BlackElo "2140"]
[Annotator "ChessBase"]
[PlyCount "46"]
[EventDate "2019.10.04"]
[EventType "swiss"]
[EventCountry "ITA"]
[SourceTitle "playchess.com"]
[Source "ChessBase"]
[SourceQuality "1"]
[TimeControl "40/5400+30:1800+30"]

1. e3 {[%emt 0:00:30]} d5 {[%emt 0:05:30]} 2. c4 {[%emt 0:00:00]} Nf6 {[%emt 0:00:00]} 3. Nf3 {[%emt 0:05:00]} g6 {[%emt 0:02:00]} 4. d4 {[%emt 0:01:30]} Bg7 5. Nc3 {[%emt 0:01:30]} O-O {[%emt 0:01:00]} 6. Bd2 c5 {[%emt 0:00:30]} 7. dxc5 {[%emt 0:05:00]} Na6 {[%emt 0:06:30]} 8. cxd5 Nxc5 {[%emt 0:05:30]} 9. Bc4 {[%emt 0:01:00]} a6 {[%emt 0:06:30]} 10. b4 {[%emt 0:05:30]} Nce4 {[%emt 0:07:30]} 11. Nxe4 {[%emt 0:00:30]} Nxe4 12. Rc1 {[%emt 0:00:00]} b5 {[%emt 0:01:00]} 13. Bb3 Bb7 {[%emt 0:00:30]} 14. Qc2 {[%emt 0:03:30]} Bxd5 {[%emt 0:03:30]} 15. Bxd5 Qxd5 {[%emt 0:00:30]} 16. O-O {[%emt 0:01:00]} Qe6 {[%emt 0:10:30]} 17. Rfd1 {[%emt 0:01:30]} Rac8 {[%emt 0:02:30]} 18. Qb1 {[%emt 0:01:30]} Rc4 19. Be1 {[%emt 0:05:30]} Rfc8 {[%emt 0:10:00]} 20. a3 {[%emt 0:33:30]} Bc3 {[%emt 0:03:30]} 21. Rd3 {[%emt 0:00:00]} Qf5 {[%emt 0:14:41]} 22. Nd4 {[%emt 0:00:00]} Bxe1 {[%emt 0:01:54]} 23. Nxf5 {[%emt 0:00:00]} Bxf2+ {[%emt 0:00:30]} 0-1

[Event "41st Arco Open 2019"]
[Site "Arco"]
[Date "2019.10.07"]
[Round "4"]
[White "Zwahr, Paul"]
[Black "zum Felde, Michael"]
[Result "1-0"]
[ECO "B33"]
[WhiteElo "2282"]
[BlackElo "2139"]
[Annotator "ChessBase"]
[PlyCount "39"]
[EventDate "2019.10.04"]
[EventType "swiss"]
[EventCountry "ITA"]
[SourceTitle "playchess.com"]
[Source "ChessBase"]
[SourceQuality "1"]
[TimeControl "40/5400+30:1800+30"]

1. e4 {[%emt 0:00:30]} c5 {[%emt 0:00:30]} 2. Nf3 {[%emt 0:00:00]} Nc6 {[%emt 0:00:00]} 3. d4 {[%emt 0:00:00]} cxd4 {[%emt 0:01:00]} 4. Nxd4 {[%emt 0:00:00]} Nf6 {[%emt 0:00:30]} 5. Nc3 {[%emt 0:00:00]} e5 {[%emt 0:00:30]} 6. Ndb5 {[%emt 0:02:30]} d6 {[%emt 0:00:30]} 7. Bg5 {[%emt 0:00:00]} Be7 {[%emt 0:12:30]} 8. Bxf6 {[%emt 0:01:00]} gxf6 {[%emt 0:00:30]} 9. Nd5 {[%emt 0:00:30]} Rb8 10. Nbc7+ {[%emt 0:03:30]} Kf8 {[%emt 0:06:00]} 11. Qh5 {[%emt 0:03:30]} Kg7 12. O-O-O {[%emt 0:01:30]} f5 {[%emt 0:13:00]} 13. exf5 {[%emt 0:27:30]} Nd4 {[%emt 0:05:30]} 14. Nxe7 {[%emt 0:22:30]} Qxc7 {[%emt 0:00:30]} 15. Qg5+ {[%emt 0:00:30]} Kf8 {[%emt 0:00:00]} 16. Rxd4 {[%emt 0:05:30]} exd4 {[%emt 0:28:00]} 17. Nd5 {[%emt 0:00:30]} Qa5 {[%emt 0:00:00]} 18. Qh6+ {[%emt 0:01:30]} Ke8 {[%emt 0:00:00]} 19. Bb5+ {[%emt 0:00:30]} Bd7 {[%emt 0:00:00]} 20. Qxd6 1-0

[Event "41st Arco Open 2019"]
[Site "Arco"]
[Date "2019.10.07"]
[Round "4"]
[White "Curien, Nicolas"]
[Black "Valet, Richard"]
[Result "1/2-1/2"]
[ECO "D00"]
[WhiteElo "2261"]
[BlackElo "1987"]
[Annotator "ChessBase"]
[PlyCount "69"]
[EventDate "2019.10.04"]
[EventType "swiss"]
[EventCountry "ITA"]
[SourceTitle "playchess.com"]
[Source "ChessBase"]
[SourceQuality "1"]
[TimeControl "40/5400+30:1800+30"]

1. d4 {[%emt 0:00:30]} Nf6 {[%emt 0:00:30]} 2. Nc3 {[%emt 0:00:00]} d5 {[%emt 0:00:00]} 3. Bf4 {[%emt 0:00:00]} g6 {[%emt 0:04:00]} 4. e3 {[%emt 0:00:00]} Bg7 5. h4 {[%emt 0:00:00]} h5 {[%emt 0:00:00]} 6. Nb5 {[%emt 0:03:30]} Na6 {[%emt 0:00:30]} 7. Nf3 {[%emt 0:03:30]} Bg4 {[%emt 0:02:30]} 8. Bd3 {[%emt 0:09:30]} Ne4 {[%emt 0:09:30]} 9. Nc3 {[%emt 0:00:00]} Nxc3 {[%emt 0:07:30]} 10. bxc3 {[%emt 0:00:00]} c5 {[%emt 0:00:00]} 11. Bb5+ {[%emt 0:10:30]} Bd7 {[%emt 0:11:00]} 12. Bxd7+ {[%emt 0:08:30]} Qxd7 {[%emt 0:00:00]} 13. O-O {[%emt 0:00:30]} Rc8 {[%emt 0:00:00]} 14. Qb1 {[%emt 0:05:30]} f6 {[%emt 0:13:30]} 15. a4 {[%emt 0:20:30]} cxd4 {[%emt 0:13:30]} 16. cxd4 {[%emt 0:00:00]} Nb8 {[%emt 0:08:30]} 17. c4 {[%emt 0:00:00]} dxc4 {[%emt 0:00:30]} 18. Qxg6+ {[%emt 0:00:00]} Kf8 {[%emt 0:00:00]} 19. Rfc1 {[%emt 0:00:00]} Qg4 {[%emt 0:04:00]} 20. Qb1 {[%emt 0:01:30]} e5 {[%emt 0:01:30]} 21. dxe5 {[%emt 0:02:30]} fxe5 {[%emt 0:00:30]} 22. Bxe5 {[%emt 0:12:30]} Rg8 {[%emt 0:01:30]} 23. Qb4+ {[%emt 0:00:00]} Ke8 {[%emt 0:01:30]} 24. Qb5+ {[%emt 0:00:00]} Nd7 {[%emt 0:01:30]} 25. Bxg7 {[%emt 0:06:39]} Rxg7 26. Ng5 {[%emt 0:01:27]} b6 {[%emt 0:02:03]} 27. g3 Rc5 {[%emt 0:03:00]} 28. Qb2 {[%emt 0:01:31]} Ne5 {[%emt 0:02:59]} 29. Kf1 {[%emt 0:01:55]} Rxg5 {[%emt 0:02:28]} 30. hxg5 {[%emt 0:02:24]} Qf3 {[%emt 0:00:26]} 31. Qd4 {[%emt 0:07:25]} Qh1+ {[%emt 0:06:56]} 32. Ke2 {[%emt 0:00:01]} Qf3+ {[%emt 0:00:00]} 33. Kf1 {[%emt 0:00:00]} Qh1+ {[%emt 0:01:00]} 34. Ke2 {[%emt 0:00:20]} Qf3+ {[%emt 0:00:00]} 35. Ke1 {[%emt 0:00:30]} 1/2-1/2

[Event "41st Arco Open 2019"]
[Site "Arco"]
[Date "2019.10.07"]
[Round "4"]
[White "Scheftlein, Richard"]
[Black "Voelker, Sebastian"]
[Result "1/2-1/2"]
[ECO "D07"]
[WhiteElo "2236"]
[BlackElo "2074"]
[Annotator "ChessBase"]
[PlyCount "116"]
[EventDate "2019.10.04"]
[EventType "swiss"]
[EventCountry "ITA"]
[SourceTitle "playchess.com"]
[Source "ChessBase"]
[SourceQuality "1"]
[TimeControl "40/5400+30:1800+30"]

1. d4 {[%emt 0:00:30]} d5 {[%emt 0:00:30]} 2. c4 {[%emt 0:00:00]} Nc6 {[%emt 0:00:00]} 3. Nc3 {[%emt 0:00:00]} dxc4 {[%emt 0:01:00]} 4. d5 {[%emt 0:00:30]} Ne5 {[%emt 0:00:30]} 5. Bf4 {[%emt 0:00:30]} Ng6 {[%emt 0:00:30]} 6. Bg3 {[%emt 0:03:30]} e5 {[%emt 0:02:30]} 7. Nf3 {[%emt 0:00:30]} Bd6 {[%emt 0:02:30]} 8. e4 Nf6 {[%emt 0:01:30]} 9. Nd2 {[%emt 0:03:00]} a6 {[%emt 0:05:30]} 10. Nxc4 {[%emt 0:00:30]} b5 {[%emt 0:01:30]} 11. Nxd6+ {[%emt 0:06:30]} Qxd6 {[%emt 0:04:30]} 12. Bd3 {[%emt 0:05:30]} O-O {[%emt 0:00:00]} 13. O-O {[%emt 0:00:30]} Bb7 {[%emt 0:02:00]} 14. Qe2 {[%emt 0:08:30]} Rfe8 {[%emt 0:06:30]} 15. Rfd1 {[%emt 0:01:30]} Rad8 {[%emt 0:02:30]} 16. Rac1 {[%emt 0:11:30]} Qb6 {[%emt 0:00:30]} 17. a4 {[%emt 0:00:30]} b4 {[%emt 0:02:30]} 18. Nb1 {[%emt 0:08:30]} Nf4 {[%emt 0:21:30]} 19. Bxf4 {[%emt 0:04:30]} exf4 {[%emt 0:14:30]} 20. Qf3 {[%emt 0:00:30]} Nd7 {[%emt 0:00:30]} 21. Qxf4 {[%emt 0:02:30]} Ne5 {[%emt 0:00:00]} 22. Be2 c6 {[%emt 0:10:24]} 23. dxc6 {[%emt 0:11:00]} Bxc6 {[%emt 0:00:00]} 24. Rxd8 {[%emt 0:00:30]} Qxd8 {[%emt 0:00:48]} 25. Nd2 {[%emt 0:12:15]} Bxa4 {[%emt 0:01:03]} 26. Bxa6 {[%emt 0:00:00]} Qa8 {[%emt 0:08:43]} 27. Be2 {[%emt 0:00:00]} Bc6 {[%emt 0:00:24]} 28. Qe3 {[%emt 0:00:00]} Ng6 {[%emt 0:00:00]} 29. f3 {[%emt 0:00:00]} Bd7 {[%emt 0:09:34]} 30. Bc4 {[%emt 0:19:30]} Ne5 {[%emt 0:00:00]} 31. Bd5 {[%emt 0:00:00]} Qa6 {[%emt 0:01:06]} 32. Nc4 {[%emt 0:00:00]} Qf6 {[%emt 0:00:56]} 33. Nxe5 {[%emt 0:00:00]} Qxe5 34. Qb3 {[%emt 0:00:00]} Qd4+ {[%emt 0:00:34]} 35. Kh1 Be6 {[%emt 0:00:24]} 36. Bxe6 {[%emt 0:00:00]} fxe6 {[%emt 0:00:00]} 37. h3 {[%emt 0:00:00]} h6 {[%emt 0:00:44]} 38. Rd1 {[%emt 0:03:53]} Qc5 {[%emt 0:00:58]} 39. Qd3 {[%emt 0:00:00]} Rc8 {[%emt 0:00:00]} 40. Qd4 {[%emt 0:00:00]} Qc2 {[%emt 0:01:03]} 41. Ra1 {[%emt 0:09:52]} b3 {[%emt 0:08:49]} 42. Qe5 {[%emt 0:00:00]} Rc5 {[%emt 0:02:30]} 43. Qxe6+ {[%emt 0:00:00]} Kh7 {[%emt 0:00:30]} 44. e5 {[%emt 0:00:00]} Rc6 {[%emt 0:04:12]} 45. Qd5 {[%emt 0:07:42]} Qxb2 {[%emt 0:06:05]} 46. Qe4+ {[%emt 0:05:49]} Rg6 {[%emt 0:00:14]} 47. Rg1 {[%emt 0:00:00]} Qc2 {[%emt 0:11:10]} 48. Qxc2 {[%emt 0:00:00]} bxc2 {[%emt 0:00:00]} 49. Rc1 {[%emt 0:01:00]} Rc6 {[%emt 0:00:00]} 50. f4 {[%emt 0:00:00]} Rc3 {[%emt 0:00:00]} 51. Kh2 {[%emt 0:00:00]} h5 {[%emt 0:00:00]} 52. g4 {[%emt 0:03:22]} h4 {[%emt 0:00:00]} 53. f5 {[%emt 0:00:00]} g5 {[%emt 0:00:00]} 54. e6 {[%emt 0:00:00]} Kg7 {[%emt 0:00:00]} 55. e7 {[%emt 0:00:00]} Kf7 {[%emt 0:00:00]} 56. f6 {[%emt 0:00:00]} Rc8 {[%emt 0:00:00]} 57. Kg1 {[%emt 0:00:00]} Rc6 {[%emt 0:00:00]} 58. Kg2 {[%emt 0:01:31]} Re6 {[%emt 0:00:00]} 1/2-1/2

[Event "41st Arco Open 2019"]
[Site "Arco"]
[Date "2019.10.07"]
[Round "4"]
[White "Vezzosi, Paolo"]
[Black "Sarkar, Justin"]
[Result "1/2-1/2"]
[ECO "A25"]
[WhiteElo "2235"]
[BlackElo "2350"]
[Annotator "ChessBase"]
[PlyCount "87"]
[EventDate "2019.10.04"]
[EventType "swiss"]
[EventCountry "ITA"]
[SourceTitle "playchess.com"]
[Source "ChessBase"]
[SourceQuality "1"]
[TimeControl "40/5400+30:1800+30"]

1. c4 {[%emt 0:00:30]} e5 {[%emt 0:01:30]} 2. Nc3 {[%emt 0:00:00]} Nc6 {[%emt 0:00:00]} 3. g3 {[%emt 0:00:00]} g6 {[%emt 0:05:00]} 4. Bg2 {[%emt 0:00:30]} Bg7 5. e3 {[%emt 0:02:30]} d6 {[%emt 0:02:00]} 6. Nge2 {[%emt 0:00:00]} h5 {[%emt 0:00:30]} 7. Nd5 {[%emt 0:08:00]} h4 {[%emt 0:02:30]} 8. d3 {[%emt 0:05:30]} Nce7 {[%emt 0:05:30]} 9. Bd2 {[%emt 0:01:30]} c6 {[%emt 0:00:30]} 10. Nxe7 {[%emt 0:01:30]} Nxe7 {[%emt 0:00:30]} 11. Nc3 {[%emt 0:02:30]} Be6 12. Qa4 {[%emt 0:02:30]} Qd7 {[%emt 0:08:00]} 13. Ne4 {[%emt 0:02:30]} h3 14. Bf3 {[%emt 0:01:30]} f5 {[%emt 0:02:00]} 15. Nc3 d5 {[%emt 0:00:30]} 16. cxd5 {[%emt 0:06:00]} cxd5 {[%emt 0:02:30]} 17. O-O Qxa4 {[%emt 0:25:30]} 18. Nxa4 {[%emt 0:03:00]} b6 {[%emt 0:00:30]} 19. Rac1 {[%emt 0:00:30]} Kd7 {[%emt 0:02:30]} 20. Rc2 {[%emt 0:08:30]} Rac8 21. Rfc1 {[%emt 0:00:30]} Rxc2 {[%emt 0:08:00]} 22. Rxc2 {[%emt 0:20:30]} g5 {[%emt 0:00:30]} 23. b3 {[%emt 0:00:00]} g4 {[%emt 0:00:30]} 24. Be2 d4 {[%emt 0:01:30]} 25. e4 {[%emt 0:00:00]} Nc8 {[%emt 0:11:30]} 26. f3 {[%emt 0:00:00]} gxf3 {[%emt 0:02:10]} 27. Bxf3 {[%emt 0:00:00]} Nd6 28. exf5 {[%emt 0:00:00]} Bxf5 {[%emt 0:00:20]} 29. Nb2 {[%emt 0:17:55]} e4 {[%emt 0:01:55]} 30. dxe4 {[%emt 0:00:00]} Nxe4 {[%emt 0:00:20]} 31. Bf4 {[%emt 0:00:00]} Nc3 {[%emt 0:10:50]} 32. Rd2 {[%emt 0:00:00]} Nxa2 33. Nd3 {[%emt 0:00:00]} Nc3 {[%emt 0:01:00]} 34. Be5 Bxe5 {[%emt 0:01:44]} 35. Nxe5+ {[%emt 0:00:00]} Ke6 {[%emt 0:00:00]} 36. Nc6 {[%emt 0:00:00]} Nb5 {[%emt 0:02:38]} 37. g4 Bg6 {[%emt 0:00:30]} 38. Nxd4+ {[%emt 0:01:05]} Nxd4 {[%emt 0:00:31]} 39. Rxd4 {[%emt 0:00:30]} Rc8 {[%emt 0:02:52]} 40. Kf2 {[%emt 0:01:30]} Rc3 41. b4 {[%emt 0:00:30]} Ke5 {[%emt 0:19:47]} 42. Rd5+ Kf4 {[%emt 0:00:08]} 43. Rd4+ {[%emt 0:01:00]} Ke5 {[%emt 0:00:52]} 44. Rd5+ {[%emt 0:00:30]} 1/2-1/2